bitfinex-derivatives/quotes_ETHF0:USTF0_20250727
["timestamp","ask_amount","ask_price","bid_price","bid_amount"]
[1753649956033,21.71358,3825.2,3825.1,1.7097]
[1753649956228,0.3462,3824.9,3824.8,4.01254]
[1753649956431,0.3462,3824.9,3824.8,4.20224]
[1753649956631,0.2059,3824.9,3824.8,5.15384]
[1753649956927,0.2059,3824.9,3824.8,5.44024]
[1753649958237,0.72862,3824.9,3824.8,5.44024]
[1753649966448,0.72862,3824.9,3824.8,4.9175]
[1753649966747,0.72862,3824.9,3824.8,5.44024]
[1753649967748,1.46282,3824.9,3824.8,5.44024]
[1753649974952,1.46282,3824.9,3824.8,4.9175]
[1753649975253,1.78152,3824.9,3824.8,4.9175]
[1753649975648,1.78152,3824.9,3824.8,4.4403]
[1753649975848,1.46282,3824.9,3824.8,5.2598]
[1753649977051,1.46282,3824.9,3824.8,5.78254]
[1753649977956,0.6039,3825.3,3825.2,2.72528]
[1753649978155,22.08629,3825.3,3825.2,5.93308]
[1753649978356,22.84963411,3825.3,3825.2,5.93308]
[1753649978652,23.24863411,3825.3,3825.2,5.93308]
[1753649978850,22.85443411,3825.3,3825.2,5.93308]
[1753649980147,23.25793411,3825.3,3825.2,5.4104]
[1753649980357,23.25793411,3825.3,3824.9,0.3737]
[1753649980358,0.52271,3825.0,3824.9,0.3737]
[1753649980556,1.84534,3824.8,3824.7,3.5815]
[1753649980857,2.60893887,3824.8,3824.7,3.2078]
[1753649981054,1.84534,3824.8,3824.7,3.2078]
[1753649981259,1.84539,3824.4,3824.3,0.3737]
[1753649981455,1.52672,3824.2,3824.1,4.5248]
[1753649981755,1.84542,3824.2,3824.1,3.5815]
[1753649981962,1.84542,3824.2,3824.1,3.2078]
[1753649982946,1.84542,3824.2,3823.7,3.2078]
[1753649982947,0.6039,3823.8,3823.7,3.2078]
[1753649983151,1.84547,3823.8,3823.7,3.5815]
[1753649983959,1.84547,3823.8,3823.7,5.4104]
[1753649983960,1.52677,3823.8,3823.7,5.4104]
[1753649984159,1.12327,3823.8,3823.7,5.4104]
[1753649984359,1.52677,3823.8,3823.7,5.4104]
[1753649985561,1.84547,3823.8,3823.7,5.4104]
[1753649985956,1.52677,3823.8,3823.7,5.4104]
[1753649986262,1.52677,3823.8,3823.7,4.8203]
[1753649986566,1.84547,3823.8,3823.7,4.07]
[1753649986758,1.52677,3823.8,3823.7,5.4104]
[1753649987054,1.12327,3823.8,3823.7,5.4104]
[1753649988061,1.12327,3823.8,3823.7,5.93329]
[1753649988355,0.52286,3824.0,3823.9,1.40846]
[1753649988560,0.52286,3824.0,3823.9,2.72546]
[1753649989658,1.12326,3824.0,3823.9,2.72546]
[1753649989856,1.51746,3824.0,3823.9,2.72546]
[1753649990263,1.52676,3824.0,3823.9,2.72546]
[1753649991364,0.52286,3824.0,3823.9,2.72546]
[1753649991659,21.48784,3824.1,3824.0,0.85385]
[1753649991863,21.48784,3824.1,3824.0,1.40845]
[1753649992051,0.52284,3824.1,3824.0,2.72545]
[1753649992256,21.48584,3824.1,3824.0,2.72545]
[1753649992858,21.49164,3824.1,3824.0,2.72545]
[1753649993058,21.74684,3824.1,3824.0,5.93325]
[1753649993564,21.74684,3824.1,3824.0,5.4104]
[1753649993765,22.48974,3824.1,3824.0,5.4104]
[1753649993966,22.48974,3824.1,3824.0,5.93325]
[1753649995264,21.75614,3824.1,3824.0,5.93325]
[1753649995566,22.48974,3824.1,3824.0,5.93325]
[1753649996060,21.74684,3824.1,3824.0,5.93325]
[1753649996268,1.13251,3824.4,3824.3,2.2026]
[1753649996470,22.48671,3824.4,3824.3,2.2026]
[1753649996764,22.48671,3824.4,3824.3,2.72541]
[1753649997961,1.52671,3824.4,3824.3,2.72541]
[1753649998163,22.48671,3824.4,3824.3,2.72541]
[1753650000157,22.48471,3824.4,3824.3,2.72541]
[1753650000362,21.219,3824.4,3824.3,2.72541]
[1753650000562,0.90456,3824.7,3824.5,0.8801]
[1753650000771,22.09906,3824.7,3824.6,0.8801]
[1753650000961,21.1999,3824.7,3824.6,2.71537]
[1753650001267,22.43425,3824.7,3824.6,2.71537]
[1753650001469,22.73965,3824.7,3824.6,2.71537]
[1753650001864,22.43425,3824.7,3824.6,2.71537]
[1753650002062,1.47625,3824.7,3824.6,2.71537]
[1753650002367,1.09125,3824.7,3824.6,2.71537]
[1753650003068,1.46765,3824.7,3824.6,2.71537]
[1753650003468,0.9449,3824.7,3824.6,2.71537]
[1753650003664,1.46765,3824.7,3824.6,2.71537]
[1753650004371,0.9449,3824.7,3824.6,2.71537]
[1753650004573,0.9535,3824.7,3824.6,2.1926]
[1753650004871,1.09117,3825.3,3825.2,2.71528]
[1753650005067,1.85323907,3825.3,3825.2,5.92308]
[1753650005268,2.22963907,3825.3,3825.2,5.92308]
[1753650005871,22.73657,3825.3,3825.2,5.92308]
[1753650006064,22.43117,3825.3,3825.2,5.92308]
[1753650006266,23.49852529,3825.3,3825.2,1.3358]
[1753650006464,23.49852529,3825.3,3825.2,5.92308]
[1753650006465,1.33045529,3825.3,3825.2,5.92308]
[1753650006666,21.71595529,3825.3,3825.2,5.92308]
[1753650006867,0.52804,3825.6,3825.5,0.2953]
[1753650007062,21.71494482,3825.6,3825.5,2.71524]
[1753650007267,21.71394482,3825.6,3825.5,2.71524]
[1753650007675,22.23657482,3825.6,3825.5,2.71524]
[1753650008171,22.47847482,3825.6,3825.5,2.71524]
[1753650008371,20.952,3825.6,3825.5,2.71524]
[1753650008575,21.47463,3825.6,3825.5,2.71524]
[1753650009070,1.1449,3825.9,3825.8,2.1926]
[1753650009275,0.96181465,3825.9,3825.8,2.7152]
[1753650009772,0.2,3825.9,3825.8,2.7152]
[1753650011268,0.2,3825.9,3825.6,3.2078]
[1753650011269,0.4419,3826.5,3826.4,1.10731]
[1753650011465,2.72371172,3826.5,3826.4,2.1926]
[1753650011664,2.20120172,3826.5,3826.4,2.71512]
[1753650012273,1.4398,3826.5,3826.4,2.71512]
[1753650012674,1.96231,3826.5,3826.4,2.71512]
[1753650013768,2.26771,3826.5,3826.4,0.3721]
[1753650014072,2.26771,3826.5,3826.4,1.5594]
[1753650014270,2.26771,3826.5,3826.4,2.1926]
[1753650014464,22.90731,3826.5,3826.4,2.1926]
[1753650015277,23.21271,3826.5,3826.4,2.1926]
[1753650016372,1.7452,3826.1,3826.0,0.3721]
[1753650016575,23.9527378,3826.1,3826.0,0.3721]
[1753650017177,1.96236,3826.1,3826.0,2.1926]
[1753650017372,0.8183,3826.4,3826.3,0.6332]
[1753650017572,20.942,3826.4,3826.3,5.92293]
[1753650017768,0.52252,3826.4,3826.3,5.92293]
[1753650017968,22.02761,3826.5,3826.4,0.52252]
[1753650018175,21.46451,3826.5,3826.4,1.40262]
[1753650018375,0.52251,3826.5,3826.4,2.71512]
[1753650018672,21.69997,3826.9,3826.8,1.77465]
[1753650018875,21.90537,3826.9,3826.8,2.71505]
[1753650019179,22.60837,3826.9,3826.8,2.71505]
[1753650019377,22.90327,3826.9,3826.8,2.71505]
[1753650019578,23.9506478,3826.9,3826.8,0.3721]
[1753650019876,2.26769,3826.6,3826.5,0.891]
[1753650020078,23.20769,3826.6,3826.5,2.1926]
[1753650020572,4.51381,3827.3,3826.5,2.1926]
[1753650020573,0.52245,3827.1,3827.0,0.52242]
[1753650020773,1.96225,3827.1,3827.0,2.29352]
[1753650020975,1.96225,3827.1,3827.0,2.1926]
[1753650021171,21.6819778,3827.3,3826.6,0.5189]
[1753650021172,0.52248,3826.7,3826.6,0.5189]
[1753650021476,22.02558,3826.7,3826.6,2.71509]
[1753650021683,0.2054,3827.2,3827.1,0.8801]
[1753650021869,0.7685,3827.2,3827.1,2.1926]
[1753650022178,1.96221,3827.2,3827.1,2.1926]
[1753650022567,0.52244,3827.0,3826.9,3.2078]
[1753650022778,1.75689,3826.6,3826.5,4.5203]
[1753650022969,1.96229,3826.6,3826.5,5.92291]
[1753650023172,0.858,3827.1,3827.0,1.7711]
[1753650023379,22.62382,3827.1,3827.0,0.3721]
[1753650023877,2.26764,3827.0,3826.9,3.5799]
[1753650024379,2.26764,3827.0,3826.9,4.0988]
[1753650024970,2.26764,3827.0,3826.9,4.3457]
[1753650025575,2.26764,3827.0,3826.9,4.641]
[1753650025781,2.26764,3827.0,3826.9,5.0625]
[1753650026276,2.26764,3827.0,3826.9,4.641]
[1753650026475,2.26764,3827.0,3826.9,3.8268]
[1753650026674,2.26764,3827.0,3826.9,3.5799]
[1753650027175,2.26764,3827.0,3826.9,0.3721]
[1753650028179,2.26764,3827.0,3826.9,0.8444]
[1753650028380,2.26764,3827.0,3826.9,1.0913]
[1753650028982,2.26764,3827.0,3826.9,1.387]
[1753650029282,2.26764,3827.0,3826.9,2.1572]
[1753650029880,1.96224,3827.0,3826.9,2.1572]
[1753650030075,2.25614,3827.0,3826.9,1.7221]
[1753650030282,0.52248,3826.7,3826.6,0.4351]
[1753650030474,23.9596578,3826.7,3826.6,0.3841]
[1753650030680,23.9596578,3826.7,3826.5,3.2078]
[1753650030681,2.28169,3826.6,3826.5,3.2078]
[1753650030877,2.28172,3826.4,3826.3,0.3841]
[1753650031084,2.28175,3826.2,3826.1,3.2078]
[1753650031384,3.0237278,3826.2,3826.1,4.6474]
[1753650031577,3.0237278,3826.2,3826.1,5.3666]
[1753650031980,3.0237278,3826.2,3826.1,4.9315]
[1753650032283,3.0237278,3826.2,3826.1,3.5919]
[1753650032788,3.0237278,3826.2,3826.1,3.2078]
[1753650033282,1.42227,3826.0,3825.9,0.3841]
[1753650033581,23.21677,3826.0,3825.9,0.3841]
[1753650034176,23.21677,3826.0,3825.4,0.9163]
[1753650034177,1.42234,3825.5,3825.4,0.9163]
[1753650034383,22.92394,3825.5,3825.4,2.1588]
[1753650034582,1.62674,3825.5,3825.4,2.1588]
[1753650034783,22.56274,3825.5,3825.4,2.1588]
[1753650036079,1.62674,3825.5,3825.4,2.1588]
[1753650036280,22.56274,3825.5,3825.4,2.1588]
[1753650036883,22.91914,3825.5,3825.4,2.1588]
[1753650037881,22.91914,3825.5,3825.4,2.68146]
[1753650038187,22.91914,3825.5,3825.4,2.1588]
[1753650038977,23.9515178,3825.5,3825.4,0.6206]
[1753650039182,2.27488,3825.2,3825.1,3.2078]
[1753650039384,23.21188,3825.2,3825.1,3.2078]
[1753650039585,23.21188,3825.2,3825.1,3.5919]
[1753650039785,23.21188,3825.2,3825.1,5.3666]
[1753650042081,0.3564,3825.9,3825.1,5.3666]
[1753650042280,1.98439,3825.9,3825.8,2.1588]
[1753650042484,23.68064372,3825.9,3825.8,2.1588]
[1753650043585,0.75825372,3825.9,3825.8,2.6814]
[1753650043792,1.62792,3826.4,3826.3,0.8673]
[1753650044088,23.95512456,3826.4,3826.3,2.1588]
[1753650044289,23.69742792,3826.4,3826.3,2.1588]
[1753650045390,22.93932,3826.4,3826.3,2.1588]
[1753650047591,0.72822,3826.4,3826.3,2.1588]
[1753650047788,0.52252,3826.4,3826.3,2.68133]
[1753650047993,21.46952,3826.4,3826.3,2.68133]
[1753650048894,21.92692,3826.4,3826.3,2.68133]
[1753650049395,21.92692,3826.4,3826.3,2.1588]
[1753650050790,21.92692,3826.4,3826.3,2.68133]
[1753650051192,21.92692,3826.4,3826.3,2.1588]
[1753650051594,21.72022,3826.4,3826.3,2.68133]
[1753650051799,21.92592,3826.4,3826.3,2.1588]
[1753650051990,22.93032,3826.4,3826.3,2.1588]
[1753650052296,22.93032,3826.4,3826.3,2.68133]
[1753650053399,0.52252,3826.4,3826.3,2.68133]
[1753650053698,0.52252,3826.6,3826.5,2.68129]
[1753650053892,21.46052,3826.6,3826.5,2.68129]
[1753650054997,21.45952,3826.6,3826.5,2.68129]
[1753650056297,21.45952,3826.6,3826.5,2.1588]
[1753650056497,21.66522,3826.6,3826.5,2.68131]
[1753650057590,0.52252,3826.6,3826.5,2.68131]
[1753650057795,0.52246,3827.0,3826.9,1.38203]
[1753650057997,21.45846,3827.0,3826.9,2.68713]
[1753650060195,1.62932,3827.2,3827.1,2.68712]
[1753650060500,21.45842,3827.2,3827.1,2.68712]
[1753650060997,21.66342,3827.2,3827.1,2.68712]
[1753650061495,21.66342,3827.2,3827.1,2.1647]
[1753650061696,23.12822,3827.2,3827.1,0.3752]
[1753650061992,23.12822,3827.2,3826.9,3.2078]
[1753650061993,1.36324,3827.0,3826.9,3.2078]
[1753650062188,23.8692178,3827.0,3826.9,3.583]
[1753650062388,23.8692178,3827.0,3826.9,4.3319]
[1753650062594,23.8692178,3827.0,3826.9,5.3725]
[1753650063701,23.5886178,3827.0,3826.9,5.3725]
[1753650063996,23.5886178,3827.0,3826.9,5.89495]
[1753650064394,0.52244,3827.0,3826.9,5.3725]
[1753650064594,21.45644,3827.0,3826.9,5.3725]
[1753650065299,21.66144,3827.0,3826.9,5.3725]
[1753650066298,22.84564,3827.0,3826.9,5.3725]
[1753650066600,22.84564,3827.0,3826.9,5.89495]
[1753650066796,22.84564,3827.0,3826.9,5.3725]
[1753650067300,22.84564,3827.0,3826.9,5.89495]
[1753650067905,22.84564,3827.0,3826.9,5.3725]
[1753650068200,1.91164,3827.0,3826.9,5.3725]
[1753650068502,1.91164,3827.0,3826.9,5.89495]
[1753650068703,0.52244,3827.0,3826.9,5.89495]
[1753650068904,22.84464,3827.0,3826.9,5.3725]
[1753650070198,22.84464,3827.0,3826.9,2.1647]
[1753650070703,23.12524,3827.0,3826.9,2.1647]
[1753650072104,22.84464,3827.0,3826.9,2.1647]
[1753650075410,1.91164,3827.0,3826.9,2.1647]
[1753650075706,21.45344,3827.0,3826.9,2.1647]
[1753650075901,0.52244,3827.1,3826.9,1.2348]
[1753650076110,0.52244,3827.1,3827.0,2.68712]
[1753650077109,1.91164,3827.1,3827.0,2.1647]
[1753650077306,2.19224,3827.1,3827.0,2.1647]
[1753650077714,2.19224,3827.1,3827.0,2.68714]
[1753650078013,1.56824,3827.1,3827.0,2.68714]
[1753650078704,1.71081,3827.9,3827.4,0.877]
[1753650078912,21.65231,3827.9,3827.8,2.68703]
[1753650079210,0.72231,3827.9,3827.8,2.68703]
[1753650079606,2.11151,3827.9,3827.8,2.1647]
[1753650080109,2.39211,3827.9,3827.8,2.1647]
[1753650082116,2.11151,3827.9,3827.8,2.1647]
[1753650083119,0.72231,3827.9,3827.8,2.1647]
[1753650083620,1.15611,3827.9,3827.8,2.1647]
[1753650084020,1.82921,3827.9,3827.8,2.1647]
[1753650084324,2.11151,3827.9,3827.8,2.1647]
[1753650085414,0.52233,3827.8,3827.7,3.2078]
[1753650085620,2.1051078,3827.8,3827.7,3.7463]
[1753650085811,2.9341078,3827.8,3827.7,4.9973]
[1753650086016,2.9341078,3827.8,3827.7,5.3725]
[1753650086215,23.8611078,3827.8,3827.7,5.3725]
[1753650086625,2.19217,3827.5,3827.4,1.5522]
[1753650086924,23.11917,3827.5,3827.4,1.5522]
[1753650087323,23.11917,3827.5,3827.4,1.8436]
[1753650087622,22.83857,3827.5,3827.4,2.1647]
[1753650088023,23.10617,3827.5,3827.4,2.1647]
[1753650088224,23.10617,3827.5,3827.4,1.7366]
[1753650088717,23.10617,3827.5,3827.4,0.3752]
[1753650090224,22.84517,3827.5,3827.4,2.1412]
[1753650090721,23.87658953,3827.5,3827.4,2.1412]
[1753650091615,23.87658953,3827.5,3827.4,1.6881]
[1753650091815,2.0154,3827.3,3827.1,3.2078]
[1753650092120,21.69081953,3827.5,3827.1,3.2078]
[1753650092121,24.2057878,3827.2,3827.1,3.2078]
[1753650092319,24.2057878,3827.2,3827.1,3.6926]
[1753650093533,24.96968818,3827.2,3827.1,3.6926]
[1753650094421,24.96968818,3827.2,3827.1,4.2317]
[1753650094618,24.96968818,3827.2,3827.1,5.3203]
[1753650096425,2.60341038,3827.2,3827.1,5.3203]
[1753650096621,3.2078,3827.7,3827.3,0.52238]
[1753650096622,3.5801,3827.7,3827.3,0.52238]
[1753650096927,0.52234,3827.8,3827.7,1.35043]
[1753650097123,1.28625979,3827.8,3827.7,2.63483]
[1753650098020,0.52234,3827.8,3827.7,2.63483]
[1753650098828,0.52697572,3827.8,3827.7,2.63483]
[1753650099930,0.52696572,3827.8,3827.7,2.63483]
[1753650101327,0.2,3827.9,3827.8,1.26443]
[1753650101531,0.2,3827.9,3827.8,2.63483]
[1753650101731,0.2,3827.9,3827.8,7.63483]
[1753650102127,0.018,3828.3,3828.2,1.35037]
[1753650102326,0.018,3828.3,3828.2,5.84257]
[1753650103034,0.5222,3828.8,3828.7,2.63471]
[1753650103235,0.5222,3828.8,3828.7,5.84251]
[1753650103435,1.28637833,3828.8,3828.7,5.84251]
[1753650103633,1.28637833,3828.8,3828.7,5.3203]
[1753650103829,1.59017833,3828.8,3828.7,5.3203]
[1753650104032,2.27467833,3828.8,3828.7,5.3203]
[1753650104928,2.27467833,3828.8,3828.7,5.84251]
[1753650105130,0.76417833,3828.8,3828.7,5.84251]
[1753650106035,1.28636833,3828.8,3828.7,5.84251]
[1753650106235,0.52217,3829.0,3828.9,2.63468]
[1753650106433,1.28618942,3829.0,3828.9,2.63468]
[1753650106830,1.82328942,3829.0,3828.9,2.63468]
[1753650107036,3.30498942,3829.0,3828.9,2.63468]
[1753650107236,1.05926,3829.0,3828.9,2.63468]
[1753650107431,1.51046,3829.0,3828.9,2.63468]
[1753650107938,0.9883,3829.0,3828.9,2.63468]
[1753650108235,0.52214,3829.3,3829.2,2.63464]
[1753650108433,0.52214,3829.3,3829.2,2.1125]
[1753650108635,1.285902,3829.3,3829.2,2.1125]
[1753650108836,1.823002,3829.3,3829.2,2.1125]
[1753650109035,2.646502,3829.3,3829.2,2.1125]
[1753650109236,2.646502,3829.3,3829.2,2.63464]
[1753650109431,2.646502,3829.3,3829.2,2.1125]
[1753650109935,3.304702,3829.3,3829.2,2.1125]
[1753650110639,2.21154,3829.3,3829.2,2.1125]
[1753650111139,1.88274,3829.3,3829.2,2.1125]
[1753650111329,1.88274,3829.3,3829.2,2.63464]
[1753650111739,0.3294,3829.8,3829.4,0.8281]
[1753650111931,2.21146,3829.8,3829.7,2.1125]
[1753650112134,3.30381677,3829.8,3829.7,2.1125]
[1753650113932,2.97441677,3829.8,3829.7,2.1125]
[1753650115238,2.97441677,3829.8,3829.7,2.63457]
[1753650115741,2.97441677,3829.8,3829.7,2.1125]
[1753650115936,2.97441677,3829.8,3829.7,2.63457]
[1753650116441,2.21146,3829.8,3829.7,2.63457]
[1753650116635,2.21146,3829.8,3829.7,2.1125]
[1753650116836,2.54086,3829.8,3829.7,2.63457]
[1753650117037,2.54086,3829.8,3829.7,2.1125]
[1753650117234,0.2,3829.9,3829.7,2.1125]
[1753650117536,0.2,3829.9,3829.8,2.63456]
[1753650117537,2.08264,3829.9,3829.8,2.63456]
[1753650117742,2.74084,3829.9,3829.8,2.63456]
[1753650118339,0.2,3829.9,3829.8,2.63456]
[1753650118545,1.1439,3829.9,3829.8,2.63456]
[1753650119345,0.2,3829.9,3829.8,2.63456]
[1753650120446,0.2796,3830.6,3830.5,2.61615]
[1753650120648,1.04071791,3830.6,3830.5,5.82395]
[1753650120943,0.76111791,3830.6,3830.5,5.82395]
[1753650121935,1.00291791,3830.6,3830.5,5.82395]
[1753650122136,2.22696791,3830.6,3830.5,5.82395]
[1753650122439,2.58209817,3830.6,3830.5,5.82395]
[1753650123340,2.90648695,3830.6,3830.5,5.302]
[1753650123540,3.22968695,3830.6,3830.5,5.302]
[1753650123747,3.22968695,3830.6,3830.5,5.82396]
[1753650125048,2.22698695,3830.6,3830.5,5.82396]
[1753650125243,1.28253695,3830.6,3830.5,5.82396]
[1753650125548,1.80448695,3830.6,3830.5,5.82396]
[1753650126342,0.76113695,3830.6,3830.5,5.82396]
[1753650126545,1.28308695,3830.6,3830.5,5.82396]
[1753650126744,0.76113695,3830.6,3830.5,5.82396]
[1753650127845,1.28308695,3830.6,3830.5,5.82396]
[1753650128144,0.76113695,3830.6,3830.5,5.82396]
[1753650128538,1.04334,3830.7,3830.6,1.38345]
[1753650128740,2.2283703,3830.7,3830.6,2.27325]
[1753650128944,2.2283703,3830.7,3830.6,2.61615]
[1753650130045,1.46584,3830.7,3830.6,2.61615]
[1753650131547,1.82104,3830.7,3830.6,2.61615]
[1753650133246,0.76373,3830.8,3830.7,0.52193]
[1753650133447,1.18623,3830.8,3830.7,2.61613]
[1753650133648,1.46583,3830.8,3830.7,2.61613]
[1753650134250,1.82103,3830.8,3830.7,2.61613]
[1753650135045,2.46853,3830.8,3830.7,2.61613]
[1753650135449,2.46853,3830.8,3830.5,3.2078]
[1753650135450,0.8457,3830.6,3830.5,4.2233]
[1753650135745,1.2991,3830.6,3830.5,5.82396]
[1753650136151,0.9439,3830.6,3830.5,5.82396]
[1753650136851,2.46855,3830.6,3830.5,5.82396]
[1753650137051,2.46855,3830.6,3830.5,4.74526]
[1753650137648,2.46855,3830.6,3830.5,5.08816]
[1753650137843,2.46855,3830.6,3830.5,3.2078]
[1753650138247,1.30497,3830.4,3830.1,3.2078]
[1753650138447,3.2019778,3830.2,3830.1,3.2078]
[1753650139457,3.2019778,3830.2,3830.1,4.18771]
[1753650139846,3.2019778,3830.2,3830.1,3.6657]
[1753650140355,3.2019778,3830.2,3830.1,4.18771]
[1753650140544,3.2019778,3830.2,3830.1,5.39211]
[1753650140753,3.2019778,3830.2,3830.1,5.82401]
[1753650140954,2.46,3830.2,3830.1,5.302]
[1753650141563,2.46,3830.2,3830.1,3.2078]
[1753650141856,3.2019778,3830.2,3830.1,3.2078]
[1753650142252,3.2019778,3830.2,3830.1,3.6657]
[1753650143353,3.2019778,3830.2,3830.1,4.53061]
[1753650143659,3.2019778,3830.2,3830.1,5.82401]
[1753650144053,3.2019778,3830.2,3830.1,5.302]
[1753650144759,3.2019778,3830.2,3830.1,5.82401]
[1753650145861,3.2019778,3830.2,3830.1,5.302]
[1753650146857,3.2019778,3830.2,3830.1,5.82401]
[1753650147159,3.96900312,3830.2,3830.1,5.82401]
[1753650147463,3.96900312,3830.2,3830.1,5.302]
[1753650147758,3.96900312,3830.2,3830.1,5.82401]
[1753650149750,3.96900312,3830.2,3830.1,5.302]
[1753650149960,3.96900312,3830.2,3830.1,5.82401]
[1753650151364,3.2019778,3830.2,3830.1,5.82401]
[1753650151559,3.96978006,3830.2,3830.1,5.82401]
[1753650151862,3.2019778,3830.2,3830.1,5.302]
[1753650152263,3.96977629,3830.2,3830.1,5.302]
[1753650152461,3.2019778,3830.2,3830.1,5.302]
[1753650153063,3.2019778,3830.2,3830.1,5.82401]
[1753650162971,3.2019778,3830.2,3830.1,5.302]
[1753650163165,3.2019778,3830.2,3830.1,5.82401]
[1753650164571,0.415,3830.6,3830.5,0.8339]
[1753650164766,1.42873006,3830.6,3830.5,2.1299]
[1753650164967,1.77353006,3830.6,3830.5,2.1299]
[1753650165268,2.69513006,3830.6,3830.5,2.1299]
[1753650165569,1.53573996,3830.6,3830.5,2.1299]
[1753650165975,1.29043996,3830.6,3830.5,2.65186]
[1753650166269,0.76848996,3830.6,3830.5,5.85966]
[1753650169068,0.4134,3831.1,3831.0,0.52189]
[1753650169275,1.29149864,3831.2,3831.0,5.3377]
[1753650169573,2.29499864,3831.1,3831.0,5.85959]
[1753650169763,2.88429864,3831.1,3831.0,5.85959]
[1753650169968,3.20469864,3831.1,3831.0,5.85959]
[1753650170870,2.37941864,3831.1,3831.0,5.85959]
[1753650171076,1.53679864,3831.1,3831.0,5.85959]
[1753650171276,1.01491864,3831.1,3831.0,5.85959]
[1753650171678,0.76961864,3831.1,3831.0,5.85959]
[1753650171977,1.29149864,3831.1,3831.0,5.85959]
[1753650172570,1.95019864,3831.1,3831.0,5.85959]
[1753650172768,2.59839864,3831.1,3831.0,5.85959]
[1753650172971,2.88429864,3831.1,3831.0,5.85959]
[1753650173168,2.58089864,3831.1,3831.0,5.85959]
[1753650174080,1.95019864,3831.1,3831.0,5.85959]
[1753650174275,2.43508,3831.1,3831.0,5.3377]
[1753650174480,2.43508,3831.1,3831.0,5.85959]
[1753650176277,2.13168,3831.1,3831.0,5.85959]
[1753650176483,0.6587,3831.1,3831.0,5.85959]
[1753650176783,1.3249,3831.3,3831.2,0.8339]
[1753650177080,1.3249,3831.3,3831.2,2.1299]
[1753650177281,0.2633,3831.3,3831.2,2.65176]
[1753650177577,0.018,3831.3,3831.2,2.65176]
[1753650177783,1.70908,3831.9,3831.8,2.60118]
[1753650177982,2.47533582,3831.9,3831.8,5.80898]
[1753650178384,2.61178,3831.9,3831.8,5.80898]
[1753650178678,2.61178,3831.9,3831.8,5.2872]
[1753650179385,2.61178,3831.9,3831.8,5.80898]
[1753650180078,2.61178,3831.9,3831.8,5.2872]
[1753650180285,2.61178,3831.9,3831.8,2.0794]
[1753650183183,2.61178,3831.9,3831.8,2.60118]
[1753650183390,0.72178,3831.9,3831.8,2.0794]
[1753650183786,0.72178,3831.9,3831.8,5.2872]
[1753650184095,2.29538,3831.9,3831.8,5.2872]
[1753650184291,2.61178,3831.9,3831.8,5.2872]
[1753650187991,2.61178,3831.9,3831.8,4.5042]
[1753650188294,2.61178,3831.9,3831.8,5.2872]
[1753650189288,3.37814666,3831.9,3831.8,5.2872]
[1753650192892,3.37814666,3831.9,3831.8,2.0794]
[1753650195588,3.37814666,3831.9,3831.8,1.436]
[1753650195793,2.41181,3831.6,3831.5,2.0794]
[1753650195998,3.92015446,3831.6,3831.5,2.0794]
[1753650196198,3.17817666,3831.6,3831.5,2.0794]
[1753650197504,0.6044,3831.4,3831.3,3.5667]
[1753650197701,1.34766,3831.2,3831.1,0.783]
[1753650197901,3.1538378,3831.2,3831.1,0.8693]
[1753650198099,3.1538378,3831.2,3831.1,2.0794]
[1753650198696,1.34771,3830.9,3830.8,4.8043]
[1753650198911,2.41191,3830.9,3830.8,4.8043]
[1753650199405,2.41191,3830.9,3830.8,2.0794]
[1753650200502,2.41191,3830.9,3830.8,0.4829]
[1753650200811,2.41191,3830.9,3830.5,0.783]
[1753650200812,2.41195,3830.6,3830.5,0.4829]
[1753650201004,3.1539278,3830.6,3830.5,0.4829]
[1753650201200,3.92025269,3830.6,3830.5,0.4829]
[1753650201412,2.06087,3830.4,3830.3,5.2872]
[1753650201711,2.41197,3830.4,3830.3,5.2872]
[1753650203802,2.41197,3830.4,3830.3,3.9938]
[1753650204008,2.41197,3830.4,3830.3,5.2872]
[1753650207113,2.41197,3830.4,3830.3,4.5042]
[1753650207315,2.41197,3830.4,3830.3,4.2849]
[1753650207516,2.41197,3830.4,3830.3,5.2872]
[1753650207819,2.37551,3830.1,3830.0,2.034]
[1753650208011,3.1174878,3830.1,3830.0,2.034]
[1753650208206,0.8157,3829.8,3829.6,0.4267]
[1753650208407,1.33776,3829.8,3829.7,2.0193]
[1753650208715,1.33781,3829.4,3829.3,4.8004]
[1753650208912,2.36551,3829.4,3829.3,4.8004]
[1753650209513,3.1074878,3829.4,3829.3,5.2271]
[1753650210418,3.1074878,3829.4,3829.3,4.8004]
[1753650210616,3.1074878,3829.4,3829.3,5.2271]
[1753650211719,3.1074878,3829.4,3829.3,3.2078]
[1753650211912,3.1074878,3829.4,3829.1,2.0193]
[1753650211913,2.36554,3829.2,3829.1,2.0193]
[1753650213016,0.7458,3829.5,3829.2,0.52213]
[1753650213222,1.4861,3829.5,3829.4,2.0193]
[1753650213427,3.1074778,3829.5,3829.4,2.0193]
[1753650214621,3.1074778,3829.5,3829.4,0.4375]
[1753650214921,2.36552,3829.3,3829.2,0.7873]
[1753650215117,2.36552,3829.3,3829.2,0.4375]
[1753650215323,2.36552,3829.3,3829.2,1.7317]
[1753650215720,2.36552,3829.3,3829.2,2.0193]
[1753650216017,2.36556,3829.0,3828.9,5.2271]
[1753650216216,3.1075378,3829.0,3828.9,5.2271]
[1753650216814,2.1968378,3829.0,3828.9,5.2271]
[1753650218524,2.1968378,3829.0,3828.9,5.74928]
[1753650219722,3.1075378,3829.0,3828.9,4.8004]
[1753650219924,3.1075378,3829.0,3828.9,5.2271]
[1753650220123,3.1075378,3829.0,3828.9,5.74928]
[1753650220324,3.1075378,3829.0,3828.9,5.2271]